fUST/lending_fUST_20240615
["ID","MTS","AMOUNT","RATE_DAILY","PERIOD"]
[329581105,1718458243695,-300.0,0.000165,2]
[329581107,1718458243724,-221.35449748,0.00016612,2]
[329581109,1718458243742,-17318.01655964,0.00016712,15]
[329581112,1718458243780,-500.0,0.00016712,2]
[329581114,1718458243806,-500.0,0.00016712,2]
[329581116,1718458243842,-218.74815301,0.00016712,2]
[329581118,1718458243858,-741.59,0.00016712,2]
[329581119,1718458243873,-554.35,0.00016712,2]
[329581121,1718458243896,-500.0,0.00016712,2]
[329581123,1718458243931,-500.0,0.00016712,2]
[329581125,1718458243944,-500.0,0.00016712,2]
[329581127,1718458243955,-500.0,0.00016712,2]
[329581129,1718458243966,-562.35,0.00016712,2]
[329581130,1718458243985,-518.73,0.00016712,2]
[329581132,1718458244000,-500.0,0.00016712,2]
[329581135,1718458244043,-5362.02,0.00016712,2]
[329581136,1718458244070,-500.0,0.00016712,2]
[329581139,1718458244114,-500.0,0.00016712,2]
[329581141,1718458244152,-1230.26,0.00016712,2]
[329581144,1718458244169,-569.39,0.00016712,2]
[329581146,1718458244180,-500.0,0.00016712,2]
[329581149,1718458244201,-3540.95,0.00016712,2]
[329581150,1718458244213,-2713.58,0.00016712,2]
[329581152,1718458244225,-1221.2,0.00016712,2]
[329581154,1718458244239,-500.0,0.00016712,2]
[329581157,1718458244267,-1654.84,0.00016712,2]
[329581158,1718458244284,-500.0,0.00016712,2]
[329581161,1718458244301,-500.0,0.00016712,2]
[329581162,1718458244313,-500.0,0.00016712,2]
[329581164,1718458244338,-3944.7,0.00016712,2]
[329581166,1718458244349,-500.0,0.00016712,2]
[329581168,1718458244367,-1674.03,0.00016712,2]
[329581169,1718458244383,-500.0,0.00016712,2]
[329581172,1718458244436,-1191.65,0.00016712,2]
[329581174,1718458244453,-500.0,0.00016712,2]
[329581176,1718458244466,-500.0,0.00016712,2]
[329581177,1718458244500,-500.0,0.00016712,2]
[329581179,1718458244512,-1116.28,0.00016712,2]
[329581182,1718458244535,-2128.29,0.00016712,2]
[329581184,1718458244562,-500.0,0.00016712,2]
[329581186,1718458244575,-500.0,0.00016712,2]
[329581188,1718458244598,-500.0,0.00016712,2]
[329581189,1718458244636,-1137.74,0.00016712,2]
[329581191,1718458244672,-1303.29757194,0.00016967,2]
[329581194,1718458244703,-489.52678547,0.00016985,2]
[329581196,1718458244721,-500.0,0.00016986,2]
[329581198,1718458244742,-500.0,0.00016986,2]
[329581200,1718458244764,-741.59,0.00016986,2]
[329581204,1718458244812,-554.35,0.00016986,2]
[329581206,1718458244840,-500.0,0.00016986,2]
[329581209,1718458244860,-500.0,0.00016986,2]
[329581211,1718458244885,-500.0,0.00016986,2]
[329581214,1718458244933,-500.0,0.00016986,2]
[329581216,1718458244945,-562.35,0.00016986,2]
[329581217,1718458244957,-518.73,0.00016986,2]
[329581219,1718458244968,-500.0,0.00016986,2]
[329581220,1718458244983,-5362.02,0.00016986,2]
[329581222,1718458244996,-500.0,0.00016986,2]
[329581224,1718458245013,-500.0,0.00016986,2]
[329581225,1718458245027,-1230.26,0.00016986,2]
[329581227,1718458245046,-569.39,0.00016986,2]
[329581228,1718458245059,-500.0,0.00016986,2]
[329581231,1718458245091,-3540.95,0.00016986,2]
[329581233,1718458245104,-2713.58,0.00016986,2]
[329581234,1718458245120,-1221.2,0.00016986,2]
[329581235,1718458245161,-500.0,0.00016986,2]
[329581236,1718458245173,-1654.84,0.00016986,2]
[329581237,1718458245184,-521.46281786,0.00016986,2]
[329581238,1718458245199,-500.0,0.00016986,2]
[329581239,1718458245225,-3944.7,0.00016986,2]
[329581240,1718458245245,-500.0,0.00016986,2]
[329581241,1718458245278,-1674.03,0.00016986,2]
[329581242,1718458245316,-500.0,0.00016986,2]
[329581243,1718458245331,-1191.65,0.00016986,2]
[329581245,1718458245356,-500.0,0.00016986,2]
[329581246,1718458245377,-500.0,0.00016986,2]
[329581247,1718458245403,-500.0,0.00016986,2]
[329581248,1718458245419,-1116.28,0.00016986,2]
[329581250,1718458245446,-2128.29,0.00016986,2]
[329581252,1718458245459,-500.0,0.00016986,2]
[329581254,1718458245472,-500.0,0.00016986,2]
[329581255,1718458245500,-500.0,0.00016986,2]
[329581256,1718458245528,-1137.74,0.00016986,2]
[329581257,1718458245539,-155.0,0.0001711,2]
[329581258,1718458245561,-500.0,0.0001726,2]
[329581259,1718458245577,-500.0,0.0001726,2]
[329581260,1718458245595,-741.59,0.0001726,2]
[329581261,1718458245607,-554.35,0.0001726,2]
[329581262,1718458245633,-500.0,0.0001726,2]
[329581263,1718458245645,-500.0,0.0001726,2]
[329581264,1718458245656,-500.0,0.0001726,2]
[329581265,1718458245666,-500.0,0.0001726,2]
[329581266,1718458245681,-562.35,0.0001726,2]
[329581267,1718458245698,-518.73,0.0001726,2]
[329581268,1718458245710,-500.0,0.0001726,2]
[329581269,1718458245724,-5362.02,0.0001726,2]
[329581270,1718458245738,-500.0,0.0001726,2]
[329581271,1718458245749,-500.0,0.0001726,2]
[329581272,1718458245760,-1230.26,0.0001726,2]
[329581273,1718458245774,-569.39,0.0001726,2]
[329581274,1718458245804,-500.0,0.0001726,2]
[329581275,1718458245820,-3540.95,0.0001726,2]
[329581276,1718458245836,-1803.80867784,0.0001726,2]
[329581302,1718458247948,-909.77132216,0.0001726,2]
[329581303,1718458247964,-1221.2,0.0001726,2]
[329581305,1718458247978,-500.0,0.0001726,2]
[329581307,1718458247992,-1654.84,0.0001726,2]
[329581309,1718458248023,-500.0,0.0001726,2]
[329581311,1718458248040,-3944.7,0.0001726,2]
[329581313,1718458248053,-500.0,0.0001726,2]
[329581315,1718458248078,-1674.03,0.0001726,2]
[329581317,1718458248094,-500.0,0.0001726,2]
[329581318,1718458248119,-1191.65,0.0001726,2]
[329581319,1718458248133,-500.0,0.0001726,2]
[329581320,1718458248148,-168.11081133,0.0001726,2]
[329581321,1718458248164,-331.88918867,0.0001726,2]
[329581322,1718458248175,-500.0,0.0001726,2]
[329581323,1718458248190,-1116.28,0.0001726,2]
[329581324,1718458248205,-2128.29,0.0001726,2]
[329581326,1718458248275,-184.30675585,0.0001726,2]
[329581328,1718458248289,-500.0,0.0001726,2]
[329581330,1718458248317,-500.0,0.0001726,2]
[329581331,1718458248331,-1137.74,0.0001726,2]
[329581332,1718458248342,-151.0,0.0001731,2]
[329581333,1718458248368,-151.0,0.00017434,2]
[329581334,1718458248388,-620.0000262,0.00017453,2]
[329581335,1718458248406,-500.0,0.00017534,2]
[329581336,1718458248454,-500.0,0.00017534,2]
[329581337,1718458248546,-741.59,0.00017534,2]
[329581338,1718458248600,-554.35,0.00017534,2]
[329581339,1718458248644,-500.0,0.00017534,2]
[329581340,1718458248657,-500.0,0.00017534,2]
[329581343,1718458248686,-500.0,0.00017534,2]
[329581345,1718458248713,-500.0,0.00017534,2]
[329581347,1718458248737,-562.35,0.00017534,2]
[329581350,1718458248752,-518.73,0.00017534,2]
[329581352,1718458248784,-500.0,0.00017534,2]
[329581354,1718458248797,-5362.02,0.00017534,2]
[329581356,1718458248835,-500.0,0.00017534,2]
[329581358,1718458248860,-500.0,0.00017534,2]
[329581360,1718458248872,-1230.26,0.00017534,2]
[329581362,1718458248886,-569.39,0.00017534,2]
[329581364,1718458248897,-500.0,0.00017534,2]
[329581366,1718458248909,-3540.95,0.00017534,2]
[329581368,1718458248931,-2713.58,0.00017534,2]
[329581370,1718458248942,-129.18853654,0.00017534,2]
[329581392,1718458250328,-1092.01146346,0.00017534,2]
[329581394,1718458250340,-500.0,0.00017534,2]
[329581396,1718458250366,-1003.18739089,0.00017534,2]
[329581398,1718458250569,-651.65260911,0.00017534,2]
[329581399,1718458250581,-500.0,0.00017534,2]
[329581400,1718458250595,-3944.7,0.00017534,2]
[329581401,1718458250608,-500.0,0.00017534,2]
[329581402,1718458250632,-1674.03,0.00017534,2]
[329581403,1718458250645,-500.0,0.00017534,2]
[329581404,1718458250659,-1191.65,0.00017534,2]
[329581405,1718458250682,-500.0,0.00017534,2]
[329581406,1718458250708,-500.0,0.00017534,2]
[329581407,1718458250726,-500.0,0.00017534,2]
[329581408,1718458250739,-1116.28,0.00017534,2]
[329581409,1718458250762,-2128.29,0.00017534,2]
[329581410,1718458250775,-390.59261929,0.00017534,2]
[329581411,1718458250801,-500.0,0.00017534,2]
[329581412,1718458250818,-1137.74,0.00017534,2]
[329581413,1718458250852,-151.0,0.00017559,2]
[329581414,1718458250879,-151.0,0.00017683,2]
[329581415,1718458250892,-23579.63630729,0.00017798,2]
[329581416,1718458251768,-1389.19619758,0.00017798,2]
[329581417,1718458251792,-869.94591213,0.00017798,2]
[329581418,1718458251807,-330.29329238,0.00017798,2]
[329581419,1718458251820,-2010.36178506,0.00017798,2]
[329581420,1718458251832,-1610.0,0.00017798,2]
[329581421,1718458251846,-466.16787958,0.00017798,2]
[329581422,1718458505620,181.5,0.0002408,35]
[329581426,1718458635494,4928.8412617,0.00025,60]
[329581427,1718458791410,-660.45293371,9.01e-05,2]
[329581428,1718458791450,-317.7123937,9.011e-05,2]
[329581429,1718458791491,-2644.59354839,9.012e-05,2]
[329581430,1718458791544,-300.0,9.013e-05,2]
[329581431,1718458791581,-300.0,9.013e-05,2]
[329581432,1718458791614,-509.2553987,9.013e-05,2]
[329581433,1718458791643,-9596.22206697,9.014e-05,2]
[329581434,1718458791670,-9494.20160111,9.039e-05,2]
[329581435,1718458791710,-1177.56205742,9.04e-05,2]
[329581436,1718458852629,-157.0195297,9.039e-05,2]
[329581437,1718458852663,-292.19306968,9.04e-05,2]
[329581438,1718458852705,-155.00930056,9.04e-05,2]
[329581439,1718458852742,-2096.53889493,9.04e-05,2]
[329581440,1718458852773,-17299.23920513,9.04e-05,2]
[329581480,1718459383573,-155.01085076,9.033e-05,2]
[329581481,1718459383681,-315.46330571,9.033e-05,2]
[329581511,1718459436151,-242.57106669,9.03e-05,2]
[329581512,1718459436175,-317.7123937,9.031e-05,2]
[329581513,1718459436200,-524.76569402,9.031e-05,2]
[329581514,1718459436216,-509.2553987,9.032e-05,2]
[329581515,1718459436227,-155.01085076,9.032e-05,2]
[329581516,1718459436240,-880.3209525,9.033e-05,2]
[329581525,1718459442048,-87.07702882,9.033e-05,2]
[329581526,1718459442066,-155.01085076,9.033e-05,2]
[329581527,1718459442086,-1511.44701844,9.037e-05,2]
[329581528,1718459442097,-191.74660679,9.039e-05,2]
[329581529,1718459442110,-300.0,9.039e-05,2]
[329581530,1718459442124,-2022.36162427,9.04e-05,2]
[329581531,1718459442136,-532.8963782,9.04e-05,2]
[329581532,1718459442156,-27.16997909,9.04e-05,2]
[329581568,1718459447821,-374.26654542,9.04e-05,2]
[329581569,1718459447833,-156.76753354,9.04e-05,2]
[329581571,1718459447865,-366.7041532,9.04e-05,2]
[329581572,1718459447877,-310.02170292,9.999e-05,2]
[329581573,1718459447901,-150.84813775,0.0001,2]
[329581575,1718459447922,-559.84436917,0.0001,2]
[329581578,1718459447952,-295.15563083,0.0001241,2]
[329581581,1718459448054,-1804.96188054,0.0001241,2]
[329581584,1718459448081,-1196.85193453,0.0001241,2]
[329581585,1718459448094,-498.181828,0.00013699,2]
[329581586,1718459448106,-2764.5125229,0.00013784,2]
[329581587,1718459448123,-201.70044356,0.00015,2]
[329581588,1718459448136,-51.00982813,0.00015899,2]
[329581589,1718459448425,-1040.05050672,0.00015899,2]
[329581591,1718459448436,-155.01240099,0.00015997,2]
[329581593,1718459448450,-733.71925611,0.00015997,2]
[329581595,1718459448463,-9591.83023895,0.00015997,2]
[329581599,1718459448503,-187.46396613,0.00015997,2]
[329581601,1718459448543,-185.23427495,0.00015997,2]
[329581603,1718459448579,-155.01085076,0.00015998,2]
[329581606,1718459448604,-2325.98951872,0.00015998,2]
[329581609,1718459448636,-42133.2060422,0.00015999,2]
[329581611,1718459448680,-6752.6942463,0.00016,2]
[329581614,1718459448701,-1124.09092791,0.00016,2]
[329581616,1718459448717,-1000.0,0.00016,6]
[329581619,1718459448742,-565.984,0.00016172,2]
[329581620,1718459448762,-211.709,0.00016172,2]
[329581622,1718459448788,-155.01240099,0.00016332,2]
[329581624,1718459448837,-155.01550155,0.00016332,2]
[329581625,1718459448852,-1303.29757194,0.00016333,2]
[329581626,1718459448866,-489.52678547,0.00016333,2]
[329581627,1718459448881,-39734.65248063,0.00016335,2]
[329581663,1718459457352,-312.42208549,0.00015997,2]
[329581664,1718459457362,-208.467,0.00016172,2]
[329581665,1718459457389,-415.79111768,0.00016334,2]
[329581666,1718459457411,-230.29805566,0.00016334,2]
[329581667,1718459457442,-242.57106669,0.00016334,2]
[329581668,1718459457457,-3587.33671813,0.00016335,2]
[329581669,1718459457482,-2851.45779506,0.00016335,2]
[329581670,1718459457509,-3741.15649222,0.00016335,2]
[329581673,1718459694748,1329.37393218,0.00025,60]
[329581675,1718460048312,2519.57,0.00025,60]
[329581676,1718460049843,470.47415647,7.982e-05,2]
[329581677,1718460049930,421.71621418,7.982e-05,2]
[329581678,1718460049979,581.42223417,7.982e-05,2]
[329581679,1718460050029,517.58754774,7.982e-05,2]
[329581680,1718460050100,493.81618937,7.982e-05,2]
[329581695,1718460555785,-277.10418432,7.937e-05,2]
[329581696,1718460605838,-300.0,7.396e-05,2]
[329581697,1718460605885,-155.01395126,7.396e-05,2]
[329581698,1718460605946,-170.24971836,7.396e-05,2]
[329581699,1718460605992,-241.61713829,7.396e-05,2]
[329581700,1718460606050,-308.00319694,7.396e-05,2]
[329581769,1718460635239,-1432.81105298,7.392e-05,2]
[329581770,1718460635255,-69.64442256,7.392e-05,2]
[329581771,1718460635281,-509.2553987,7.392e-05,2]
[329581772,1718460635293,-1912.47554364,7.392e-05,2]
[329581774,1718460635303,-1282.86128703,7.393e-05,2]
[329581775,1718460635343,-300.0,7.394e-05,2]
[329581778,1718460635385,-169.58115088,7.395e-05,2]
[329581780,1718460635397,-411.67124189,7.395e-05,2]
[329581782,1718460635449,-182.15079663,7.395e-05,2]
[329581784,1718460635478,-693.03407038,7.395e-05,2]
[329581785,1718460635509,-46661.52391703,7.395e-05,2]
[329581787,1718460635533,-1730.35045473,7.396e-05,2]
[329581788,1718460635550,-33913.28886486,7.396e-05,2]
[329581844,1718460642398,-159.16840036,7.391e-05,2]
[329581845,1718460642433,-1344.10915683,7.391e-05,2]
[329581846,1718460642461,-10.9361689,7.396e-05,2]
[329581847,1718460642510,-25698.24487035,7.396e-05,2]
[329581848,1718460642527,-24900.0,7.397e-05,2]
[329581849,1718460642561,-286.07406684,7.934e-05,2]
[329581850,1718460642572,-2644.59354839,7.934e-05,2]
[329581851,1718460642588,-179.17835788,7.939e-05,2]
[329581852,1718460642620,-372.40481974,7.975e-05,2]
[329581853,1718460642645,-523.73040166,7.975e-05,2]
[329581854,1718460642655,-1114.23146943,7.981e-05,2]
[329581855,1718460642686,-292.19306968,7.982e-05,2]
[329581856,1718460642710,-300.448704,7.982e-05,2]
[329581857,1718460642726,-19321.6008294,7.982e-05,2]
[329581858,1718460642740,-155.01550155,7.982e-05,2]
[329581859,1718460642754,-2096.53889493,7.982e-05,2]
[329581860,1718460642765,-16200.27458094,7.982e-05,2]
[329581861,1718460642800,-420.0,8.134e-05,2]
[329581864,1718460642851,-420.0,8.136e-05,2]
[329581865,1718460642867,-408.0,8.947e-05,2]
[329581868,1718460642885,-587.0,8.949e-05,2]
[329581870,1718460642906,-1177.56205742,8.989e-05,2]
[329581871,1718460642924,-5521.86741195,9.018e-05,2]
[329581873,1718460642946,-188.8073854,9.033e-05,2]
[329581876,1718460642980,-357.0,9.844e-05,2]
[329581877,1718460642999,-370.27079611,0.0001,2]
[329581879,1718460643032,-794.48,0.00010959,2]
[329581880,1718460643062,-1195.89,0.00010959,2]
[329581881,1718460643094,-996.57,0.00010959,2]
[329581882,1718460643117,-830.48,0.00010959,2]
[329581883,1718460643130,-692.06,0.00010959,2]
[329581884,1718460643160,-576.72,0.00010959,2]
[329581885,1718460643184,-480.6,0.00010959,2]
[329581886,1718460643212,-400.5,0.00010959,2]
[329581887,1718460643240,-333.75,0.00010959,2]
[329581888,1718460643261,-278.12,0.00010959,2]
[329581889,1718460643288,-231.77,0.00010959,2]
[329581890,1718460643325,-193.14,0.00010959,2]
[329581891,1718460643367,-160.95,0.00010959,2]
[329581892,1718460643377,-2281.60376588,0.000129,2]
[329581893,1718460643419,-2281.60376585,0.00013136,2]
[329581894,1718460643430,-3000.0,0.00013699,2]
[329581895,1718460643445,-6806.8652065,0.00013699,2]
[329581896,1718460643458,-979.334508,0.00013699,2]
[329581897,1718460643471,-1692.62660858,0.00015,2]
[329581898,1718460643491,-2413.03400432,0.00015,2]
[329581899,1718460643504,-2819.17925605,0.00015,2]
[329581901,1718460643515,-35478.57810534,0.00015,2]
[329581904,1718460643531,-946.56236145,0.00015,2]
[329581905,1718460643543,-1101.53149693,0.00015,2]
[329581908,1718460643564,-80000.0,0.00015,2]
[329581909,1718460643577,-1750.0,0.00015461,2]
[329581911,1718460643606,-6752.6942463,0.00016,2]
[329581915,1718460643663,-1124.09092791,0.00016,2]
[329581916,1718460643677,-500.012,0.00016172,2]
[329581917,1718460643694,-5345.4994764,0.000162,2]
[329581918,1718460643715,-30366.80509284,0.00016297,2]
[329581919,1718460643730,-1303.29757194,0.00016317,2]
[329581920,1718460643789,-272.51996637,0.00016333,2]
[329581921,1718460643802,-155.29436051,0.00016333,2]
[329581922,1718460643822,-156.9902577,0.00016333,2]
[329581923,1718460643837,-186.51853177,0.00016333,2]
[329581924,1718460643850,-178.92903546,0.00016333,2]
[329581925,1718460643876,-659.92725719,0.00016333,2]
[329581926,1718460643891,-215.75285839,0.00016333,2]
[329581927,1718460643914,-975.77563374,0.00016333,2]
[329581928,1718460643926,-186.60100242,0.00016333,2]
[329581929,1718460643950,-157.30960619,0.00016335,2]
[329581930,1718460643964,-3616.33764897,0.00016335,2]
[329581931,1718460644016,-15500.39469232,0.00016335,2]
[329581933,1718460644032,-1442.75395102,0.00016336,2]
[329581934,1718460644049,-1518.74519988,0.00016336,2]
[329581935,1718460644064,-303.49251712,0.00016336,2]
[329581936,1718460644076,-524.64907675,0.00016336,2]
[329581937,1718460644103,-554.27834432,0.00016336,2]
[329581938,1718460644116,-159.4896765,0.00016336,2]
[329581939,1718460644140,-310.0,0.00016336,2]
[329581940,1718460644151,-352.91075159,0.00016337,2]
[329581941,1718460644162,-500.0,0.00016438,2]
[329581942,1718460644174,-500.0,0.00016438,2]
[329581943,1718460644186,-500.0,0.00016438,2]
[329581944,1718460644200,-588.52849861,0.00016438,2]
[329581945,1718460644213,-500.0,0.00016438,2]
[329581946,1718460644226,-500.0,0.00016438,2]
[329581947,1718460644256,-500.0,0.00016438,2]
[329581948,1718460644275,-506.65264297,0.00016438,2]
[329581949,1718460644288,-500.0,0.00016438,2]
[329581950,1718460644306,-500.0,0.00016438,2]
[329581951,1718460644334,-551.39871038,0.00016438,2]
[329581952,1718460644350,-500.0,0.00016438,4]
[329581953,1718460644372,-500.0,0.00016438,2]
[329581955,1718460644400,-500.0,0.00016438,2]
[329581957,1718460644413,-500.0,0.00016438,2]
[329581960,1718460644452,-500.0,0.00016438,2]
[329581962,1718460644475,-500.0,0.00016438,2]
[329581964,1718460644514,-305.16458433,0.00016438,2]
[329581966,1718460644525,-503.9960561,0.00016438,2]
[329581968,1718460644548,-500.0,0.00016438,2]
[329581970,1718460644589,-523.67355859,0.00016438,2]
[329581973,1718460644611,-500.0,0.00016438,2]
[329581974,1718460644623,-500.0,0.00016438,2]
[329581975,1718460644658,-500.0,0.00016438,2]
[329581976,1718460644683,-500.0,0.00016438,2]
[329581977,1718460644696,-500.0,0.00016438,2]
[329581978,1718460644711,-500.0,0.00016438,2]
[329581979,1718460644736,-503.42359992,0.00016438,2]
[329581980,1718460644749,-500.0,0.00016438,2]
[329581981,1718460644760,-500.0,0.00016438,2]
[329581982,1718460644789,-500.0,0.00016438,2]
[329581983,1718460644802,-500.0,0.00016438,2]
[329581984,1718460644822,-500.93578537,0.00016438,2]
[329581985,1718460644839,-500.0,0.00016438,2]
[329581986,1718460644852,-500.0,0.00016438,2]
[329581987,1718460644892,-500.0,0.00016438,2]
[329581988,1718460644904,-500.0,0.00016438,2]
[329581989,1718460644933,-232.90020918,0.00016438,2]
[329581990,1718460644949,-500.0,0.00016438,2]
[329581991,1718460644966,-500.0,0.00016438,2]
[329581992,1718460644993,-500.0,0.00016438,2]
[329581993,1718460645016,-500.0,0.00016438,2]
[329581994,1718460645033,-500.0,0.00016438,2]
[329581995,1718460645060,-417.56673026,0.00016438,2]
[329581996,1718460645081,-500.0,0.00016438,2]
[329581997,1718460645113,-500.0,0.00016438,2]
[329581998,1718460645135,-255.05773097,0.00016438,2]
[329581999,1718460645153,-500.0,0.00016438,2]
[329582000,1718460645192,-500.0,0.00016438,2]
[329582001,1718460645207,-500.0,0.00016438,2]
[329582002,1718460645244,-505.82639184,0.00016438,2]
[329582003,1718460645265,-500.0,0.00016438,2]
[329582004,1718460645277,-500.0,0.00016438,2]
[329582005,1718460645290,-500.0,0.00016438,2]
[329582006,1718460645304,-500.0,0.00016438,2]
[329582007,1718460645318,-500.0,0.00016438,2]
[329582008,1718460645344,-633.25434302,0.00016438,2]
[329582010,1718460645355,-500.0,0.00016438,2]
[329582011,1718460645366,-498.90161469,0.00016438,2]
[329582013,1718460645377,-500.0,0.00016438,2]
[329582015,1718460645402,-500.0,0.00016438,2]
[329582017,1718460645415,-500.0,0.00016438,2]
[329582018,1718460645436,-500.0,0.00016438,2]
[329582019,1718460645452,-485.80637509,0.00016438,2]
[329582020,1718460645468,-500.0,0.00016438,2]
[329582021,1718460645479,-505.96167504,0.00016438,2]
[329582022,1718460645504,-500.0,0.00016438,2]
[329582023,1718460645556,-500.0,0.00016438,2]
[329582024,1718460645580,-407.34114668,0.00016438,2]
[329582025,1718460645625,-554.35740239,0.00016438,2]
[329582026,1718460645651,-500.0,0.00016438,2]
[329582028,1718460645689,-500.0,0.00016438,2]
[329582030,1718460645706,-500.0,0.00016438,2]
[329582031,1718460645730,-500.0,0.00016438,2]
[329582033,1718460645741,-500.0,0.00016438,2]
[329582034,1718460645765,-500.0,0.00016438,2]
[329582035,1718460645780,-500.0,0.00016438,2]
[329582036,1718460645792,-561.66272529,0.00016438,2]
[329582037,1718460645816,-500.0,0.00016438,2]
[329582038,1718460645834,-500.0,0.00016438,2]
[329582039,1718460645864,-500.0,0.00016438,2]
[329582040,1718460645882,-500.0,0.00016438,2]
[329582041,1718460645909,-500.0,0.00016438,2]
[329582042,1718460645922,-500.0,0.00016438,2]
[329582043,1718460645937,-500.0,0.00016438,2]
[329582044,1718460645949,-500.0,0.00016438,2]
[329582045,1718460645960,-500.0,0.00016438,2]
[329582046,1718460645979,-500.0,0.00016438,2]
[329582047,1718460646013,-500.0,0.00016438,2]
[329582048,1718460646070,-500.0,0.00016438,2]
[329582049,1718460646121,-500.0,0.00016438,2]
[329582050,1718460646149,-500.0,0.00016438,2]
[329582051,1718460646176,-500.0,0.00016438,2]
[329582052,1718460646192,-500.0,0.00016438,2]
[329582053,1718460646209,-500.0,0.00016438,2]
[329582054,1718460646221,-500.0,0.00016438,2]
[329582055,1718460646233,-407.80515652,0.00016438,2]
[329582056,1718460646244,-500.0,0.00016438,2]
[329582057,1718460646255,-500.0,0.00016438,2]
[329582058,1718460646266,-500.0,0.00016438,2]
[329582059,1718460646279,-500.0,0.00016438,2]
[329582060,1718460646296,-500.0,0.00016438,2]
[329582061,1718460646316,-500.0,0.00016438,2]
[329582062,1718460646329,-157.10478909,0.00016438,2]
[329582063,1718460646349,-287.67886533,0.00016438,2]
[329582073,1718460646996,-5377.35337807,7.395e-05,2]
[329582082,1718460649773,-12649.10312699,7.395e-05,2]
[329582083,1718460649800,-22438.0841026,7.395e-05,2]
[329582084,1718460650238,-824.74,7.395e-05,2]
[329582086,1718460650256,-843.92543454,7.395e-05,2]
[329582087,1718460650275,-656.10889326,7.934e-05,2]
[329582088,1718460650288,-1342.81723551,7.934e-05,2]
[329582089,1718460650301,-355.51658175,9.816e-05,2]
[329582090,1718460650326,-1643.40954698,9.816e-05,2]
[329582091,1718460650338,-804.79,0.00010959,2]
[329582092,1718460650356,-182.15079663,0.00016335,2]
[329582093,1718460650379,-352.91311308,0.00016437,2]
[329582094,1718460650389,-212.32113467,0.00016438,2]
[329582095,1718460650409,-500.0,0.00016438,2]
[329582096,1718460650432,-500.0,0.00016438,2]
[329582097,1718460650448,-500.0,0.00016438,2]
[329582098,1718460650465,-500.0,0.00016438,2]
[329582099,1718460650490,-500.0,0.00016438,2]
[329582100,1718460650533,-500.0,0.00016438,2]
[329582101,1718460650556,-500.0,0.00016438,2]
[329582102,1718460650569,-500.0,0.00016438,2]
[329582103,1718460650593,-500.0,0.00016438,2]
[329582104,1718460650606,-500.0,0.00016438,2]
[329582106,1718460650627,-500.0,0.00016438,2]
[329582108,1718460650652,-500.0,0.00016438,2]
[329582109,1718460650684,-500.0,0.00016438,2]
[329582111,1718460650703,-500.0,0.00016438,2]
[329582112,1718460650736,-502.39300777,0.00016438,2]
[329582113,1718460650760,-500.0,0.00016438,2]
[329582114,1718460650779,-500.0,0.00016438,2]
[329582115,1718460650791,-500.0,0.00016438,2]
[329582116,1718460650804,-500.0,0.00016438,2]
[329582117,1718460650818,-769.81,0.00016438,2]
[329582118,1718460650831,-500.0,0.00016438,2]
[329582119,1718460650843,-513.74038737,0.00016438,2]
[329582120,1718460650873,-500.0,0.00016438,2]
[329582121,1718460650884,-500.0,0.00016438,2]
[329582122,1718460650896,-500.0,0.00016438,2]
[329582123,1718460650923,-500.0,0.00016438,2]
[329582124,1718460650948,-500.0,0.00016438,2]
[329582125,1718460650961,-500.0,0.00016438,2]
[329582126,1718460650972,-500.0,0.00016438,2]
[329582127,1718460651008,-500.0,0.00016438,2]
[329582128,1718460651020,-500.0,0.00016438,2]
[329582129,1718460651044,-500.0,0.00016438,2]
[329582130,1718460651057,-546.21628024,0.00016438,2]